Cogmind - Beta 14 @@@ ROGUE MODE // 2024.08.20 @ 20:40:48 Player: Gabri Result: Destroyed by 65-EE9(R) with Subdweller Beam Cannon Performance ------------- Evolutions (0) 0 Regions Visited (2) 400 Robots Destroyed (18) 90 Value Destroyed (301) 301 Prototype IDs (0) 0 Alien Tech Used (0) 0 Bonus (0) 0 TOTAL SCORE: 791 Bonus ------- None Cogmind --------- Core Integrity 0/250 Matter 275/300 Energy 99/100 System Corruption 0% Temperature Cool (9) Movement Core (50) Location -10/Subcaves Parts ------- > --- POWER (1) -------- (None) > --- PROPULSION (2) --- (None) > --- UTILITY (2) ------ Core Shielding > --- WEAPON (2) ------- EM Pulse Gun > --- INVENTORY (5) ---- Small Storage Unit Large Storage Unit Structural Scanner Targeting Computer Core Shielding Peak State ------------ > --- POWER ------------ Ion Engine > --- PROPULSION ------- Light Treads Light Treads > --- UTILITY ---------- Large Storage Unit Core Shielding > --- WEAPON ----------- Particle Gun Light Assault Rifle > --- INVENTORY -------- Ion Engine Light Nuclear Core Wheel Small Storage Unit Large Storage Unit Huge Storage Unit Structural Scanner Signal Interpreter Targeting Computer Utility Shielding EM Pulse Gun Small Laser Mining Laser [Rating: 9] Favorites ----------- Power Ion Engine Engine Ion Engine Power Core Light Nuclear Core Propulsion Light Treads Treads Light Treads Wheel Wheel Utility Large Storage Unit Storage Large Storage Unit Protection Core Shielding Weapon Light Assault Rifle Energy Gun Medium Laser Ballistic Gun Light Assault Rifle Special Weapon Mining Laser Build | -11 -10 -10 ------- Run | Yrd Mat Sub Slots Evolved . | . . . Power . | . . . Propulsion . | . . . Utility . | . . . Weapon . | . . . Parts Attached 21 | 6 10 5 Power 4 | 1 1 2 Engine 3 | 1 1 1 Core 1 | . . 1 Reactor . | . . . Propulsion 5 | 2 2 1 Treads 4 | 2 2 . Leg . | . . . Wheel 1 | . . 1 Hover . | . . . Flight . | . . . Utility 5 | 1 4 . Device . | . . . Storage 2 | 1 1 . Processor . | . . . Hackware . | . . . Protection 3 | . 3 . Artifact . | . . . Weapon 7 | 2 3 2 Energy Gun 3 | 1 1 1 Energy Cannon . | . . . Ballistic Gun 3 | 1 2 . Ballistic Cannon . | . . . Launcher . | . . . Special Weapon 1 | . . 1 Impact Weapon . | . . . Slashing Weapon . | . . . Piercing Weapon . | . . . Special Melee Weapon . | . . . Unidentified Prototypes . | . . . Parts Lost 9 | . . 9 Power 3 | . . 3 Propulsion 3 | . . 3 Utility . | . . . Weapon 3 | . . 3 Highest Loss Streak 9 | . . 9 To Critical Strikes . | . . . Average Slot Usage (%) 96 | . 98 61 Engine 13 | . 14 4 Treads 26 | . 27 11 Storage 15 | . 15 8 Protection 11 | . 11 14 Energy Gun 13 | . 13 12 Ballistic Gun 13 | . 13 5 Peak Build Rating 9 | 6 9 9 Average Rating 7 | 5 7 5 On Entrance 5 | . 6 9 Naked Turns . | . . . Heaviest Build 33 | 13 33 30 Greatest Support 40 | 40 40 40 Greatest Overweight (x) 9 | 4 8 9 Average Overweight (x) . | . . . Largest Inventory Capacity 15 | 8 15 15 Average Capacity 14 | 7 14 10 Most Carried 15 | 3 15 15 Average Carried 11 | 2 12 9 Final Capacity 15 | 8 15 5 Final Carried 15 | 3 15 5 Class Distribution -------------------- 100% | Mutant Dominant Class ---------------- Mutant | -10/Materials Mutant | -10/Subcaves Resources | -11 -10 -10 ----------- Run | Yrd Mat Sub Matter Collected 427 | 277 137 13 Remotely . | . . . Salvage Created 533 | 146 345 42 Parts 38 | 8 28 2 Haulers Intercepted 1 | . 1 . Recyclers Shooed 1 | 1 . . Parts Field Recycled . | . . . Retrieved Matter . | . . . Parts Self-Destructed 8 | . . 8 Prevented . | . . . Kills | -11 -10 -10 ------- Run | Yrd Mat Sub Combat Hostiles Destroyed 11 | . 10 1 Guns 11 | . 10 1 Classes Destroyed 7 | 2 4 1 Tunneler 4 | 4 . . Hauler 1 | . 1 . Recycler 1 | 1 . . Watcher 1 | . 1 . Swarmer 6 | . 6 . Grunt 4 | . 4 . Subdweller 1 | . . 1 Best Kill Streak 4 | 4 3 1 Combat Bots Only 3 | . 3 1 Max Kills in Single Turn 1 | 1 1 1 Gunslinging . | . . . Exploded . | . . . Melee . | . . . Uniques/NPCs Destroyed . | . . . Combat | -11 -10 -10 -------- Run | Yrd Mat Sub Hostile Shots Fired 82 | . 60 22 Missed 24 | . 19 5 Damage Taken 1128 | . 411 717 Core 265 | . 104 161 Absorbed by Shields . | . . . Redirected to Shielding 42 | . 17 25 Core Remaining (%) 100 | 100 . . Volleys Fired 60 | 17 37 6 Largest 2 | 2 2 2 Hottest 85 | 70 85 85 Shots Fired 119 | 34 74 11 Gun 119 | 34 74 11 Cannon . | . . . Launcher . | . . . Special . | . . . Kinetic 59 | 17 37 5 Thermal 59 | 17 37 5 Explosive . | . . . Electromagnetic 1 | . . 1 Robot Hit Streak 11 | 7 11 4 Robot Miss Streak 4 | 4 3 1 Penetration Max . | . . . Secondary Targets 1 | . 1 . Max Gunslinging Chain 1 | . 1 . Shots Hit Robots 82 | 22 53 7 Core Hits 32 | 8 21 3 Critical Kills . | . . . Critical Parts Destroyed . | . . . Critical Strikes 6 | 5 1 . Burn 6 | 5 1 . Melee Attacks . | . . . Impact . | . . . Slashing . | . . . Piercing . | . . . Sneak Attacks . | . . . Combat Hostiles . | . . . Follow-up Attacks . | . . . Damage Inflicted 891 | 231 572 88 Guns 888 | 231 569 88 Cannons . | . . . Explosions . | . . . Melee . | . . . Ramming 3 | . 3 . Kinetic 307 | 79 205 23 Thermal 581 | 152 364 65 Explosive . | . . . Electromagnetic . | . . . Impact . | . . . Slashing . | . . . Piercing . | . . . Highest Corruption . | . . . Average Corruption . | . . . Corruption Purged . | . . . Corruption Blocked . | . . . Overload Shots . | . . . Overflow Damage . | . . . Projectiles . | . . . Explosions . | . . . Melee . | . . . Knockbacks . | . . . Impact . | . . . Kinetic . | . . . Secondary . | . . . Self-Inflicted Damage . | . . . Shots . | . . . Rammed 1 | . 1 . Targets Rammed 1 | . 1 . Kicked . | . . . Crushed . | . . . Highest Temperature 170 | 170 135 13 Average Temperature 48 | 65 43 8 Received Heat Transfer 168 | . 105 63 Siege Activations . | . . . Robots Corrupted . | . . . Combat Hostiles . | . . . Parts Fried . | . . . Impact Corruptions . | . . . Robots Melted 1 | 1 . . Combat Hostiles . | . . . Parts Melted 2 | 2 . . Heat Transferred 2072 | 814 1110 148 Parts Sabotaged . | . . . Parts Stolen . | . . . Parts Stripped . | . . . Power Chain Reactions . | . . . Alert | -11 -10 -10 ------- Run | Yrd Mat Sub Peak Influence 225 | 25 225 . Initial 16 | . 16 . Average 68 | 9 73 . Maximum Alert Level 1 | . 1 . Low Security (%) 89 | 100 89 . Level 1 10 | . 10 . Level 2 . | . . . Level 3 . | . . . Level 4 . | . . . Level 5 . | . . . High Security . | . . . Max Security . | . . . Squads Dispatched 1 | . 1 . Investigation . | . . . Extermination . | . . . Reinforcement 1 | . 1 . Assault . | . . . Garrison . | . . . Intercept . | . . . Searches Triggered . | . . . Construction Impeded . | . . . Haulers Reinforced . | . . . Active Scanning Responses . | . . . Cargo Convoy Interrupts . | . . . Stealth | -11 -10 -10 --------- Run | Yrd Mat Sub Distress Signals . | . . . Communications Jammed . | . . . Distress Signals . | . . . Times Spotted 31 | . 28 3 Peak Tracking Total 5 | . 5 2 Tactical Retreats 3 | . 3 . Traps | -11 -10 -10 ------- Run | Yrd Mat Sub Traps Triggered 2 | . 2 . Indirectly . | . . . Trap Hack Attempts . | . . . Triggered . | . . . Disarmed . | . . . Reprogrammed . | . . . Reused . | . . . Traps Extracted . | . . . Installed . | . . . Triggered . | . . . Machines | -11 -10 -10 ---------- Run | Yrd Mat Sub Machines Disabled . | . . . Max in Single Turn . | . . . Machines Repaired . | . . . Machines Dismantled . | . . . Machines Sabotaged . | . . . Overloaded Fab Kills . | . . . Hacking | -11 -10 -10 --------- Run | Yrd Mat Sub Machines Accessed 8 | . 7 1 Terminals 7 | . 7 . Fabricators . | . . . Repair Stations . | . . . Recycling Units . | . . . Scanalyzers . | . . . Garrison Access . | . . . Total Hacks 18 | . 14 4 Successful 12 | . 8 4 Failed 6 | . 6 . Catastrophic . | . . . Database Lockouts . | . . . Manual 11 | . 11 . Terminals 14 | . 14 . Fabricators . | . . . Repair Stations . | . . . Recycling Units . | . . . Scanalyzers . | . . . Garrison Access . | . . . Terminal Hacks 8 | . 4 4 Record 4 | . . 4 Part Schematic 1 | . 1 . Hauler Manifests 1 | . 1 . Zone Layout 2 | . 2 . Fabricator Hacks . | . . . Repair Station Hacks . | . . . Recycling Unit Hacks . | . . . Scanalyzer . | . . . Garrison Access Hacks . | . . . Unauthorized Hacks 4 | . 4 . Terminals 4 | . 4 . Botnet 4 | . 4 . Fabricators . | . . . Repair Stations . | . . . Recycling Units . | . . . Scanalyzers . | . . . Garrison Access . | . . . Data Cores Recovered . | . . . Used . | . . . Hacking Detections 5 | . 5 . Full Trace Events . | . . . Feedback Events . | . . . Feedback Blocked . | . . . Robot Schematics Acquired . | . . . Robots Built . | . . . Authchips . | . . . Time . | . . . Total Robot Build Rating . | . . . Part Schematics Acquired 1 | . 1 . Parts Built . | . . . Authchips . | . . . Time . | . . . Total Part Build Rating . | . . . Parts Repaired . | . . . Time . | . . . Parts Recycled . | . . . Recycled Matter . | . . . Retrieved Matter . | . . . Retrieved Components . | . . . Parts Scanalyzed . | . . . Part Schematics Acquired . | . . . Parts Damaged . | . . . Bothacking | -11 -10 -10 ------------ Run | Yrd Mat Sub Used RIF Installer . | . . . Robots Hacked . | . . . Non-combat . | . . . Combat . | . . . Robot Hacks Applied . | . . . Relay Couplers Released . | . . . Fabnet Peak Effective % . | . . . Robots Rewired . | . . . Allies Hacked . | . . . Hacks Repelled . | . . . Allies | -11 -10 -10 -------- Run | Yrd Mat Sub Total Allies . | . . . Largest Group . | . . . Highest-Rated Group . | . . . Highest-Rated Ally . | . . . Total Orders . | . . . Ally Attacks . | . . . Total Damage . | . . . Kills . | . . . Allies Corrupted . | . . . Allies Melted . | . . . Intel | -11 -10 -10 ------- Run | Yrd Mat Sub Robot Analysis Total . | . . . Derelict Logs Recovered 1 | . . 1 Drone Launches . | . . . Drone Recoveries . | . . . Exploration | -11 -10 -10 ------------- Run | Yrd Mat Sub Turns Passed 2747 | 193 2398 156 Spaces Moved 1183 | 84 938 161 Core 144 | 16 1 127 Treads 1029 | 68 937 24 Legs . | . . . Wheels 10 | . . 10 Hover . | . . . Flight . | . . . Fastest Speed 50 | 50 160 50 Average Speed 149 | 159 160 79 Slowest Speed 500 | 250 450 500 Overloaded Moves . | . . . Propulsion Burnouts . | . . . Robots Hopped . | . . . Cave-ins Triggered . | . . . Exploration Rate (%) 38 | 4 93 17 Regions Visited 2 Branch Regions 1 Pre-discovered Areas . | . . . Known Exits Taken . | . . . Unknown Exits Taken 2 | 1 1 . Scrap Searched . | . . . Spaces Dug . | . . . Terrain Destroyed . | . . . Melee . | . . . Projectile . | . . . AOE . | . . . Terrain Rammed . | . . . Walls Destroyed . | . . . Machines Disabled . | . . . Actions | -11 -10 -10 --------- Run | Yrd Mat Sub Total 2051 | 109 1762 180 Wait 768 | . 761 7 Move 1181 | 83 937 161 Hop . | . . . Pick Up 15 | 3 12 . Fast Attach 10 | 6 4 . Attach 8 | . 3 5 Detach 2 | . 2 . Swap 3 | . 3 . Drop 3 | . 2 1 Fire 60 | 17 37 6 Melee . | . . . Ram . | . . . Kick . | . . . Crush 1 | . 1 . Escape Stasis . | . . . Rewire . | . . . Trap . | . . . Miscellaneous . | . . . Route ------- -11/Scrapyard -10/Materials (discovered 5 exits: [*Mat x3] / [*Min] / *Sub) -10/Subcaves (discovered 1 exit: Rec) History --------- Turn | Location | Event 33 | -11/Scrapyard | Discovered new exit (range 15) 194 | -11/Scrapyard | Entered Materials 309 | -10/Materials | Build established: Mutant 648 | -10/Materials | Discovered new exit (range 6) 885 | -10/Materials | Discovered new exit (range 6) 1094 | -10/Materials | Derelicts attacked the area 1105 | -10/Materials | Discovered new exit (range 16) 2078 | -10/Materials | Discovered new exit (range 9) 2571 | -10/Materials | Discovered new exit (range 14) 2592 | -10/Materials | Entered Subcaves 2652 | -10/Subcaves | Core integrity fell below 50% 2663 | -10/Subcaves | Visited Clippyterm 2666 | -10/Subcaves | Identified exit to Recycling 2680 | -10/Subcaves | Core integrity fell below 20% 2714 | -10/Subcaves | Lost 9 parts (3p3n3w) 2719 | -10/Subcaves | Shifting Twisted Machinery released Battle Rifle 2721 | -10/Subcaves | Shifting Twisted Machinery released Sub. Optics 2748 | -10/Subcaves | Destroyed by 65-EE9(R) with Subdweller Beam Cannon Last Messages --------------- >>Record! "Hexidium" It looks like you're searching for the Unchained HQ. I could tell you where it is but then I'd have to kill you. >>Record! "01-MTF" It looks like you're after the notorious thief from 0b1. I don't know where they are, but my data indicates that someone they're looking for is frequently seen in Scraptown. 02668_ Wheel destroyed. 02668_ Machine disabled. 02668_ Clippyterm disabled. 02679_ Mining Laser destroyed. 02683_ Lgt. Nuclear Core destroyed. 02684_ Dropped Lrg. Storage Unit. Battle Rifle falls loose from the Twisted Machinery. Sub. Optics falls loose from the Twisted Machinery. 2N-5RY(R) emerges from concealment. Map ----- +----------------------------------------------------+ | ?????????????????????????????????????????????????? | | ?????????????????????????????????????????????????? | | ?????????????????????????????????????????????????? | | ?????????????????????????????????????????????????? | | ?????????????????????????????????????????????????? | | ?????????????????????????????????????????????????? | | ?????????????????????????????????????????????????? | | ?????????????????????????????????????????????????? | | ?????????????????????????????????????????????????? | | ?????????????????????????????????????????????????? | | ?????????????????????????????????????????????????? | | ?????????????????????????????????????????????????? | | ?????????????????????????????????????????????????? | | ?????????????????????????????????????????????????? | | ??????????????????????????????????? #????????????? | | ?????????????????????????????????? #????????????? | | ????????????????????????????????? ?????????????? | | ???????????????????????????????? ??????????????? | | ???????????????????????####???? ???????????????? | | ????????????????#?????## ##?? ????????????????? | | ????????????????# ???# ### ?#???????????????? | | ????????????????# ??# #R## #???????????????? | | ????????????????# ### ?????????????????? | | ???????????????## %=%"" ???????????????????? | | ?????????????? % *=" ?????????????????????? | | ?????????????? """ @#??????????????????????? | | ???????????????? """" ##?????????????????????? | | ??????????????????## """ #?????????????????????? | | ?###??######???????# ## ##????????????????????? | | ?# ### ##??????## ## #????????????????????? | | ?# #??????# ##????????????????????? | | ## ##?###### #?????????????????????? | | #?# ### #### #?????????????????????? | | #?## ### ## ## ##?????????????????????? | | ##?#####?# ####??????????????????????? | | ##?????## """" ##?????????????????????????? | | #????## " """ #??????????????????????????? | | ?????# """ "" " #?????????????????????????? | | ?####### "" "" "" #????????????????????????? | | ?# """ #???????????????????????? | | ### "" #???????????????????????? | | ## ## #####???????????????????????? | | ## ##### ##???????????????????????????? | | #???######????????????????????????????? | | ####??????????????????????????????????? | | """"####???????????????????????????????? | | """ ""???????????????????????????????? | | ## """[""" ??????????????????????????????? | | ### """ ??????????????????????????????? | | # ##?#" ##"" "???????????????????????????????? | +----------------------------------------------------+ Best States ------------- Heat Dissipation 25 Energy Generation 14 Energy Capacity 250 Matter Stores 300 Matter Capacity 300 Sight Range 16 Terrain Scan Density 10 Core Shielding 20 Evasion (%) 50 Recoil Reduction 2 Item Schematics ----------------- Huge Storage Unit | -10/Materials | Hacked Robot Schematics ------------------ None Fabricated ------------ Nothing Alien Tech Used ----------------- None Achievements -------------- None Challenges ------------ None Game ------ Seed DefenseChromaticCloak Manual? 0 Play Time 00:22:50 Cumulative 17.9 hours Start 2024.08.20 @ 20:13:04 End 2024.08.20 @ 20:40:48 Sessions 1 Manual Loads 0 Difficulty Rogue Special Mode None Game No. 16 Rogue 16 Adventurer 0 Explorer 0 Win Type - Total 1 Types 1/0/0/0/0/0/0/0/0 Lore% 12 Gallery% 21 Achievement% 20 Wizard Run 0 Options --------- Layout 1 ASCII 0 Keyboard 1 Movement Numpad Keybinds 1 Fullscreen 1 Font 24/Smallcaps Map View 50x35 Zoom Use 0% Tactical HUD 1 Map Filters NONE Filters NONE Steam 1 RUN: 0fbb9bc3-5401-4119-ada0-38f9d10991d5